Cogmind - Beta 16 @@@ ROGUE MODE // 2026.01.03 @ 11:10:17 Player: (Blank) Result: Destroyed by H-55 Commando with Assault Rifle Performance ------------- Evolutions (2) 1000 Regions Visited (5) 1000 Robots Destroyed (24) 120 Value Destroyed (545) 545 Prototype IDs (23) 460 Alien Tech Used (0) 0 Bonus (300) 300 TOTAL SCORE: 3425 Bonus ------- Aligned with FarCom 300 Cogmind --------- Core Integrity 0/550 Matter 86/300 Energy 85/100 System Corruption 0% Temperature Cool (23) Movement Core (1400) Ox27 Location -8/Materials Parts ------- > --- POWER (1) -------- (None) > --- PROPULSION (2) --- (None) > --- UTILITY (5) ------ Huge Storage Unit Weapon Cycler > --- WEAPON (3) ------- Beam Rifle > --- INVENTORY (25) --- Ion Engine Light Ion Engine Wheel Large Storage Unit Sensor Array Improved Terrain Scanner Seismic Detector Weapon Cycler Weapon Cycler Peak State ------------ > --- POWER ------------ Ion Engine > --- PROPULSION ------- Wheel Wheel > --- UTILITY ---------- Huge Storage Unit 0b10 Alert Chip Weapon Cycler Weapon Cycler Tractor Beam > --- WEAPON ----------- Plasma Cannon Assault Rifle Rocket Launcher > --- INVENTORY -------- Light Ion Engine Light Ion Engine Light Ion Engine Light Ion Engine Light Ion Engine Wheel Wheel Wheel Large Storage Unit Sensor Array Improved Terrain Scanner Seismic Detector Weapon Cycler Weapon Cycler Plasma Cannon Grenade Launcher Mining Laser [Rating: 28] Favorites ----------- Power Ion Engine Engine Ion Engine Propulsion Wheel Wheel Wheel Utility Sensor Array Device Sensor Array Storage Huge Storage Unit Processor 0b10 Alert Chip Weapon Assault Rifle Energy Gun Beam Rifle Energy Cannon Plasma Cannon Ballistic Gun Assault Rifle Launcher Rocket Launcher Special Weapon Mining Laser Build | -11 -10 -10 -10 -9 -8 ------- Run | Yrd Mat Min Exi Min Mat Slots Evolved 4 | . . . . . 4 Power . | . . . . . . Propulsion . | . . . . . . Utility 3 | . . . . . 3 Weapon 1 | . . . . . 1 Parts Attached 29 | 8 1 2 2 1 15 Power 5 | 1 . 1 . . 3 Engine 5 | 1 . 1 . . 3 Core . | . . . . . . Reactor . | . . . . . . Propulsion 5 | 3 . . . . 2 Treads . | . . . . . . Leg . | . . . . . . Wheel 5 | 3 . . . . 2 Hover . | . . . . . . Flight . | . . . . . . Utility 10 | 2 1 . 2 1 4 Device 6 | 1 1 . . . 4 Storage 3 | 1 . . 1 1 . Processor 1 | . . . 1 . . Hackware . | . . . . . . Protection . | . . . . . . Artifact . | . . . . . . Weapon 9 | 2 . 1 . . 6 Energy Gun 1 | . . . . . 1 Energy Cannon 2 | . . . . . 2 Ballistic Gun 3 | 2 . . . . 1 Ballistic Cannon . | . . . . . . Launcher 2 | . . 1 . . 1 Special Weapon 1 | . . . . . 1 Impact Weapon . | . . . . . . Slashing Weapon . | . . . . . . Piercing Weapon . | . . . . . . Special Melee Weapon . | . . . . . . Unidentified Prototypes . | . . . . . . Parts Lost 16 | . . . . . 16 Power 4 | . . . . . 4 Propulsion 4 | . . . . . 4 Utility 3 | . . . . . 3 Weapon 5 | . . . . . 5 Highest Loss Streak 9 | . . . . . 9 To Critical Strikes . | . . . . . . Average Backups 10 | 2 7 8 8 15 14 Power 3 | 1 3 4 3 4 4 Propulsion 1 | . 1 1 1 1 2 Utility 4 | . 2 3 3 6 5 Weapon 1 | . . . . 2 2 Tool/Special . | . . . . . . Unused Backups 7 | . 1 . . . 6 Power 1 | . . . . . 1 Propulsion 2 | . 1 . . . 1 Utility 3 | . . . . . 3 Weapon 1 | . . . . . 1 Tool/Special . | . . . . . . Average Slot Usage (%) 97 | . 100 100 100 100 76 Engine 13 | . 14 14 14 14 7 Wheel 26 | . 28 28 28 28 14 Device 9 | . 14 14 12 . 20 Storage 13 | . 14 14 14 14 9 Processor 6 | . . . 1 14 4 Ballistic Gun 14 | . 28 19 14 14 6 Launcher 11 | . . 8 14 14 5 Peak Build Rating 28 | 9 9 9 14 15 28 Average Rating 11 | 6 7 8 9 14 20 On Entrance 9 | . 9 8 9 14 15 Avg Prop Armor Cover (%) . | . . . . . . Naked Turns . | . . . . . . Heaviest Build 101 | 12 12 17 32 91 101 Greatest Support 26 | 26 20 20 20 20 20 Greatest Overweight (x) 27 | . . . 1 4 27 Average Overweight (x) 1 | . . . . 3 5 Largest Inventory Capacity 25 | 8 8 8 15 25 25 Average Capacity 16 | 7 8 8 13 24 25 Most Carried 19 | 8 8 8 10 19 18 Average Carried 10 | 2 7 7 8 15 14 Final Capacity 25 | 8 8 8 15 25 25 Final Carried 19 | 8 8 8 10 19 9 Class Distribution -------------------- 94% | Mutant 3% | Skirmisher Dominant Class ---------------- Mutant | -10/Materials Mutant | -10/Mines Mutant | -10/Exiles Mutant | -9/Mines Mutant | -8/Materials Resources | -11 -10 -10 -10 -9 -8 ----------- Run | Yrd Mat Min Exi Min Mat Matter Collected 571 | 338 50 . . 103 80 Remotely 68 | . . . . . 68 Salvage Created 802 | 173 126 . . 132 371 Parts 39 | 13 4 . . 10 12 Haulers Intercepted . | . . . . . . Recyclers Shooed 7 | . . . . 5 2 Parts Field Recycled . | . . . . . . Retrieved Matter . | . . . . . . Parts Self-Destructed . | . . . . . . Prevented . | . . . . . . Parts Restored . | . . . . . . Kills | -11 -10 -10 -10 -9 -8 ------- Run | Yrd Mat Min Exi Min Mat Combat Hostiles Destroyed 12 | . 2 . . . 10 Melee 1 | . . . . . 1 Guns 3 | . 2 . . . 1 Cannons 2 | . . . . . 2 AOE 6 | . . . . . 6 Classes Destroyed 8 | 3 2 . . . 3 Worker 3 | 2 . . . . 1 Tunneler 4 | 2 . . . 2 . Recycler 3 | 1 . . . 1 1 Watcher 2 | . 1 . . . 1 Swarmer 3 | . . . . . 3 Grunt 6 | . 2 . . . 4 Sentry 1 | . . . . . 1 Specialist 2 | . . . . . 2 Best Kill Streak 10 | 3 3 . . 1 10 Combat Bots Only 7 | . 2 . . . 7 Max Kills in Single Turn 2 | 1 1 . . 1 2 Gunslinging . | . . . . . . Exploded 2 | . . . . . 2 Melee 1 | . . . . . 1 Uniques/NPCs Destroyed . | . . . . . . Combat | -11 -10 -10 -10 -9 -8 -------- Run | Yrd Mat Min Exi Min Mat Hostile Shots Fired 106 | . 15 . . . 91 Missed 28 | . 4 . . . 24 Hits 78 | . 11 . . . 67 Projectile 78 | . 11 . . . 67 Critical Strikes 7 | . . . . . 7 Damage Taken 1557 | . 118 . . 3 1436 Core 581 | . 22 . . . 559 Absorbed by Shields . | . . . . . . Core Remaining (%) 95 | 100 . . . 91 . Volleys Fired 101 | 18 12 . . 22 49 Largest 3 | 2 2 . . 1 3 Hottest 133 | 40 40 . . 20 133 Shots Fired 135 | 22 24 . . 22 67 Gun 103 | 22 24 . . 22 35 Cannon 21 | . . . . . 21 Launcher 11 | . . . . . 11 Special . | . . . . . . Kinetic 90 | 22 24 . . 22 22 Thermal 34 | . . . . . 34 Explosive 11 | . . . . . 11 Electromagnetic . | . . . . . . Robot Hit Streak 8 | 4 5 . . 5 8 Robot Miss Streak 4 | 3 4 . . 2 4 Penetration Max . | . . . . . . Secondary Targets . | . . . . . . Shots Hit Robots 72 | 11 12 . . 13 36 Core Hits 46 | 7 6 . . 4 29 Critical Kills . | . . . . . . Critical Parts Destroyed . | . . . . . . Critical Strikes . | . . . . . . Melee Attacks . | . . . . . . Impact . | . . . . . . Slashing . | . . . . . . Piercing . | . . . . . . Sneak Attacks . | . . . . . . Combat Hostiles . | . . . . . . Follow-up Attacks . | . . . . . . Damage Inflicted 1633 | 131 120 . . 185 1197 Guns 694 | 131 120 . . 178 265 Cannons 313 | . . . . . 313 Explosions 612 | . . . . . 612 Melee . | . . . . . . Ramming 14 | . . . . 7 7 Kinetic 566 | 131 120 . . 178 137 Thermal 441 | . . . . . 441 Explosive 612 | . . . . . 612 Electromagnetic . | . . . . . . Impact . | . . . . . . Slashing . | . . . . . . Piercing . | . . . . . . Highest Corruption . | . . . . . . Average Corruption . | . . . . . . Corruption Purged . | . . . . . . Corruption Blocked . | . . . . . . Overload Shots . | . . . . . . Overflow Damage 2 | . . . . . 2 Projectiles . | . . . . . . Explosions 2 | . . . . . 2 Melee . | . . . . . . Knockbacks . | . . . . . . Impact . | . . . . . . Kinetic . | . . . . . . Secondary . | . . . . . . Self-Inflicted Damage 144 | . . . . 3 141 Shots 6 | . . . . . 6 Rammed 4 | . . . . 1 3 Targets Rammed 4 | . . . . 1 3 Kicked . | . . . . . . Crushed . | . . . . . . Highest Temperature 337 | . 18 . . . 337 Average Temperature 132 | . 10 . . . 142 Received Heat Transfer 354 | . 66 . . . 288 Effects 2 | . . . . . 2 Energy Bleed 2 | . . . . . 2 Siege Activations . | . . . . . . Martial Activations . | . . . . . . Shielding Activations . | . . . . . . Robots Disrupted . | . . . . . . Combat Hostiles . | . . . . . . Robots Corrupted . | . . . . . . Combat Hostiles . | . . . . . . Parts Fried . | . . . . . . Impact Corruptions . | . . . . . . Robots Melted . | . . . . . . Combat Hostiles . | . . . . . . Parts Melted . | . . . . . . Heat Transferred 933 | . . . . . 933 Parts Sabotaged . | . . . . . . Parts Stolen . | . . . . . . Parts Stripped . | . . . . . . Power Chain Reactions . | . . . . . . Alert | -11 -10 -10 -10 -9 -8 ------- Run | Yrd Mat Min Exi Min Mat Maximum Alert Level 1 | . . . . . 1 Low Security (%) 99 | 100 100 100 . 100 95 Level 1 . | . . . . . 4 Level 2 . | . . . . . . Level 3 . | . . . . . . Level 4 . | . . . . . . Level 5 . | . . . . . . High Security . | . . . . . . Max Security . | . . . . . . Peak Influence 227 | 10 50 18 . 4 227 Initial 18 | . . 18 . . . Average 16 | . 9 4 . . 98 Influence Increases 491 | 25 57 . . 12 397 Destroy 0b10 Robot/C 228 | . 40 . . . 188 Destroy 0b10 Robot/NC 56 | 25 5 . . 12 14 Destroy Leader 62 | . 12 . . . 50 Disable Machine 12 | . . . . . 12 Destroy Structure 40 | . . . . . 40 Lose Combat Pursuer 93 | . . . . . 93 Influence Decreases 334 | 25 10 47 . 12 240 Entered New Map 29 | . . 29 . . . Time Decay 145 | 25 10 18 . 12 80 Lost Part 160 | . . . . . 160 Squads Dispatched 8 | . 2 . . . 6 Investigation . | . . . . . . Extermination . | . . . . . . Reinforcement 7 | . 2 . . . 5 Assault . | . . . . . . Garrison 1 | . . . . . 1 Intercept . | . . . . . . Searches Triggered . | . . . . . . Construction Impeded 1 | . . . . . 1 Haulers Reinforced . | . . . . . . Active Scanning Responses . | . . . . . . Cargo Convoy Interrupts . | . . . . . . Stealth | -11 -10 -10 -10 -9 -8 --------- Run | Yrd Mat Min Exi Min Mat Distress Signals 2 | . . . . . 2 Communications Jammed . | . . . . . . Distress Signals . | . . . . . . Times Spotted 22 | . 7 . . . 15 Peak Tracking Total 8 | . 2 . . . 8 Tactical Retreats 2 | . . . . . 2 Traps | -11 -10 -10 -10 -9 -8 ------- Run | Yrd Mat Min Exi Min Mat Traps Triggered . | . . . . . . Indirectly . | . . . . . . Trap Hack Attempts . | . . . . . . Triggered . | . . . . . . Disarmed . | . . . . . . Reprogrammed . | . . . . . . Reused . | . . . . . . Traps Extracted . | . . . . . . Installed . | . . . . . . Triggered . | . . . . . . Machines | -11 -10 -10 -10 -9 -8 ---------- Run | Yrd Mat Min Exi Min Mat Machines Disabled 1 | . . . . . 1 Max in Single Turn 1 | . . . . . 1 Machines Repaired . | . . . . . . Machines Dismantled . | . . . . . . Machines Sabotaged . | . . . . . . Overloaded Fab Kills . | . . . . . . Hacking | -11 -10 -10 -10 -9 -8 --------- Run | Yrd Mat Min Exi Min Mat Machines Accessed 2 | . . . 2 . . Terminals . | . . . . . . Fabricators . | . . . . . . Repair Stations . | . . . . . . Recycling Units . | . . . . . . Scanalyzers . | . . . . . . Garrison Access . | . . . . . . Total Hacks 2 | . . . 2 . . Successful 2 | . . . 2 . . Failed . | . . . . . . Catastrophic . | . . . . . . Database Lockouts . | . . . . . . Manual 5 | . . . 5 . . Terminals . | . . . . . . Fabricators . | . . . . . . Repair Stations . | . . . . . . Recycling Units . | . . . . . . Scanalyzers . | . . . . . . Garrison Access . | . . . . . . Terminal Hacks 2 | . . . 2 . . Record 1 | . . . 1 . . Proto ID Catalog 1 | . . . 1 . . Fabricator Hacks . | . . . . . . Repair Station Hacks . | . . . . . . Recycling Unit Hacks . | . . . . . . Scanalyzer . | . . . . . . Garrison Access Hacks . | . . . . . . Unauthorized Hacks . | . . . . . . Terminals . | . . . . . . Fabricators . | . . . . . . Repair Stations . | . . . . . . Recycling Units . | . . . . . . Scanalyzers . | . . . . . . Garrison Access . | . . . . . . Data Cores Recovered . | . . . . . . Used . | . . . . . . Hacking Detections . | . . . . . . Full Trace Events . | . . . . . . Feedback Events . | . . . . . . Feedback Blocked . | . . . . . . Robot Schematics Acquired . | . . . . . . Robots Built . | . . . . . . Authchips . | . . . . . . Time . | . . . . . . Total Robot Build Rating . | . . . . . . Part Schematics Acquired . | . . . . . . Parts Built . | . . . . . . Authchips . | . . . . . . Time . | . . . . . . Total Part Build Rating . | . . . . . . Part Studies Acquired . | . . . . . . Parts Repaired . | . . . . . . Time . | . . . . . . Parts Recycled . | . . . . . . Recycled Matter . | . . . . . . Retrieved Matter . | . . . . . . Retrieved Components . | . . . . . . Parts Scanalyzed . | . . . . . . Part Schematics Acquired . | . . . . . . Parts Damaged . | . . . . . . Bothacking | -11 -10 -10 -10 -9 -8 ------------ Run | Yrd Mat Min Exi Min Mat Used RIF Installer . | . . . . . . Robots Hacked . | . . . . . . Non-combat . | . . . . . . Combat . | . . . . . . Robot Hacks Applied . | . . . . . . Relay Couplers Released . | . . . . . . Fabnet Peak Effective % . | . . . . . . Robots Rewired . | . . . . . . Allies Hacked . | . . . . . . Hacks Repelled . | . . . . . . Allies | -11 -10 -10 -10 -9 -8 -------- Run | Yrd Mat Min Exi Min Mat Total Allies . | . . . . . . Largest Group . | . . . . . . Highest-Rated Group . | . . . . . . Highest-Rated Ally . | . . . . . . Total Orders . | . . . . . . Ally Attacks . | . . . . . . Total Damage . | . . . . . . Kills . | . . . . . . Allies Corrupted . | . . . . . . Allies Melted . | . . . . . . Intel | -11 -10 -10 -10 -9 -8 ------- Run | Yrd Mat Min Exi Min Mat Active Infowar (turns) 1347 | 102 159 111 925 . 50 Sensors 1188 | . 148 111 925 . 4 Terrain 162 | 102 11 . . . 49 Robot Analysis Total . | . . . . . . Derelict Logs Recovered . | . . . . . . Drone Launches . | . . . . . . Drone Recoveries . | . . . . . . Exploration | -11 -10 -10 -10 -9 -8 ------------- Run | Yrd Mat Min Exi Min Mat Turns Passed 2688 | 266 159 111 1063 834 255 Spaces Moved 2315 | 253 151 131 1146 560 74 Core 40 | 39 . . . . 1 Treads . | . . . . . . Legs . | . . . . . . Wheels 2275 | 214 151 131 1146 560 73 Hover . | . . . . . . Flight . | . . . . . . Fastest Speed 50 | 50 80 80 80 95 140 Average Speed 102 | 80 80 80 91 136 170 Slowest Speed 1400 | 90 80 80 95 140 1400 Overloaded Moves . | . . . . . . Propulsion Burnouts . | . . . . . . Robots Hopped . | . . . . . . Potential Cave-ins . | . . . . . . Cave-ins Triggered . | . . . . . . Exploration Rate (%) 34 | 7 17 29 94 56 5 Regions Visited 5 Branch Regions 3 Pre-discovered Areas . | . . . . . . Known Exits Taken . | . . . . . . Unknown Exits Taken 5 | 1 1 1 1 1 . Scrap Searched . | . . . . . . Spaces Dug . | . . . . . . Terrain Destroyed 59 | . . . . . 59 Melee . | . . . . . . Projectile 6 | . . . . . 6 AOE 53 | . . . . . 53 Terrain Rammed . | . . . . . . Walls Destroyed . | . . . . . . Machines Disabled . | . . . . . . Actions | -11 -10 -10 -10 -9 -8 --------- Run | Yrd Mat Min Exi Min Mat Total 2525 | 294 168 137 1157 604 165 Wait 24 | . . 1 3 12 8 Move 2310 | 252 150 130 1145 559 74 Hop . | . . . . . . Pick Up 38 | 15 2 2 3 9 7 Fast Attach . | . . . . . . Attach 28 | 8 1 1 1 . 17 Detach 5 | 1 1 . 1 . 2 Swap 4 | . . 1 1 1 1 Drop 9 | . 2 2 1 . 4 Fire 101 | 18 12 . . 22 49 Melee . | . . . . . . Ram 4 | . . . . 1 3 Kick . | . . . . . . Crush . | . . . . . . Escape Stasis . | . . . . . . Rewire 2 | . . . 2 . . Trap . | . . . . . . Miscellaneous . | . . . . . . Route ------- -11/Scrapyard -10/Materials -10/Mines (discovered 2 exits: [*Mat] / *Exi) -10/Exiles (discovered 2 exits: [*Min x2]) -9/Mines (discovered 2 exits: [*Mat x2]) -8/Materials History --------- Turn | Location | Event 5 | -11/Scrapyard | Discovered new exit (range 15) 267 | -11/Scrapyard | Entered Materials 318 | -10/Materials | Build established: Mutant 343 | -10/Materials | Discovered new exit (range 12) 377 | -10/Materials | Met 8R-AWN 426 | -10/Materials | Entered Mines 426 | -10/Mines | Discovered new exit (range 13) 427 | -10/Mines | Followed 8R-AWN into the Mines 459 | -10/Mines | Received a Rocket Launcher from a helpful Derelict 519 | -10/Mines | Discovered new exit (range 5) 537 | -10/Mines | Entered Exiles 557 | -10/Exiles | Discovered new exit (range 15) 591 | -10/Exiles | Welcomed by 8R-AWN 616 | -10/Exiles | Met EX-HEX 667 | -10/Exiles | Met EX-DEC 759 | -10/Exiles | Discovered new exit (range 14) 860 | -10/Exiles | Visited The Gauntlet 1063 | -10/Exiles | Met EX-BIN 1093 | -10/Exiles | Aligned with FarCom system 1094 | -10/Exiles | Given EX-Vault access code 1418 | -10/Exiles | Opened EX-Vault 1461 | -10/Exiles | Found 0b10 Alert Chip 1482 | -10/Exiles | Warned to stay clear of 0b10 Research branches 1555 | -10/Exiles | Learned about 8R-AWN's background 1600 | -10/Exiles | Left Exiles lab with 0b10 Alert Chip 1600 | -10/Exiles | Entered Mines 1624 | -9/Mines | YI-UF0 nonchalantly dropped a Grenade Launcher on the ground 1874 | -9/Mines | Discovered new exit (range 15) 2024 | -9/Mines | Discovered new exit (range 5) 2434 | -9/Mines | Entered Materials 2434 | -8/Materials | Evolved 4 slots: Utility x3, Weapon x1 2566 | -8/Materials | Garrison activated, responded to threat 2606 | -8/Materials | Destroyed 7 combat bots 2619 | -8/Materials | Lost 7 parts (1p2n2u2w) 2634 | -8/Materials | Core integrity fell below 50% 2683 | -8/Materials | Core integrity fell below 20% 2689 | -8/Materials | Destroyed by H-55 Commando with Assault Rifle Last Messages --------------- K-01 Serf collects debris. U-05 Engineer builds a Wall. Knocked back. The unstable cave ceiling collapses. Lgt. Ion Engine destroyed. Critical hit (Blast). K-01 Serf collects debris. The unstable cave ceiling collapses. U-05 Engineer lays Concrete. Penetrated by Slug. U-05 Engineer lays Concrete. K-01 Serf collects debris. U-05 Engineer builds a Wall. Wheel destroyed. K-01 Serf collects debris. Penetrated by Slug. U-05 Engineer lays Concrete. Knocked back. K-01 Serf collects debris. Slug penetrates Earth. Map ----- +----------------------------------------------------+ | ?????????????????????????????????????????????????? | | ?????????????????????????????????????????????????? | | ?????????????????????????????????????????????????? | | ?????????????????????????????????????????????????? | | ?????????????????????????????????????????????????? | | ?????????????????????????????????????????????????? | | ?????????????????????????????????????????????????? | | ?????????????????????????????????????????????????? | | ?????????????????????????????????????????????????? | | ?????????????????????????????????????????????????? | | ?????????????????????????????????????????????????? | | ?????????????????????????????????????????????????? | | ?????????????????????????????????????????????????? | | ??????????????????????##########?????????????????? | | ??????????????????????# #???#?????????????? | | ??????????????????????# "#?????? ??????????? | | ??????????????????????# "#?????? ????????? | | ??????????????????????# """ "##?#?? ???????? | | ??????????????????????# """ T#????? ???????? | | ??????????????????????# """ "##?????"""???????? | | ??????????????????????# " " #?????""""??#????? | | ????????????????????### = " #?????"""?? ? ???? | | ??????????????? ???# " #????? ????????? | | ???????????# ##### ###% ##########+######???? | | ???????? g %* %% u k #???? | | ???????? =H @ k !!#???? | | ???????? g h *%% #???? | | ???????????# % #! ## ;### ## ##########???? | | ??????????????? ##### ###?#### #????????????? | | ??????????????? # ???????#!! #?#??????????? | | ???????????????? ##?#??#?????#!!]] #???#????#???? | | ?????????????????????????????########????????????? | | ??????????????????????????????#?????????#??#?????? | | ?????????????????????????????#?????????????????#?? | | ?????????????????????????????????????????????????? | | ???????????????????????????#???????????????#?????? | | ?????????????????????????????????????????????????? | | ?????????????????????????????????????????????????? | | ??????????????????????????????????????????#??????? | | ?????????????????????????????????????????????????? | | | | | | | | | | | | | | | | | | | | | +----------------------------------------------------+ Best States ------------- Heat Dissipation 31 Energy Generation 10 Energy Capacity 250 Matter Stores 300 Matter Capacity 300 Sight Range 16 Robot Scan Range 14 Terrain Scan Range 16 Terrain Scan Density 10 Weapon Cycling 30 Evasion (%) 50 Item Schematics ----------------- None Robot Schematics ------------------ None Fabricated ------------ Nothing Repaired ---------- Nothing Studied --------- None Alien Tech Used ----------------- None Achievements -------------- Fist Fight Follow The Leader Heavy Suspicion Hey, That's Mine! Sixth Sense Tourist Troublemaker Challenges ------------ None Game ------ Seed PoweredStrikeShell Manual? 0 Play Time 00:45:52 Cumulative 1.9 hours Start 2026.01.03 @ 10:14:45 End 2026.01.03 @ 11:10:17 Sessions 1 Manual Loads 0 Difficulty Rogue Special Mode None Game No. 3 Rogue 3 Adventurer 0 Explorer 0 Win Type - Total 0 Types 0/0/0/0/0/0/0/0/0/0 Lore% 1 Gallery% 3 Achievement% 6 Wizard Run 0 Options --------- Layout 0 ASCII 0 Keyboard 0 Movement Numpad Keybinds 0 Fullscreen 2 Font 18/SmallcapsGlow Map View 76x50 Zoom Use 0% Tactical HUD 0 Map Filters NONE Filters NONE Steam 1 RUN: 4e47ecd3-30c2-4845-85ef-b5e5fc75a6b6